[Event "Betsys MČR v online bleskovém šachu 2021"]
[Site "Chess.com"]
[Date "2021.04.17"]
[Round "3"]
[White "PetrVelicka"]
[Black "Michelangelo111"]
[Result "1-0"]
[WhiteElo "2387"]
[BlackElo "2122"]
[TimeControl "180+1"]
[EndTime "9:27:42 PDT"]
[Termination "Uživatel PetrVelicka zvítězil na čas"]

1. e4 {[%clk 0:03:00.9]} 1... c5 {[%clk 0:02:59.2]} 2. Nf3 {[%clk 0:03:00]} 2...
Nc6 {[%clk 0:02:59]} 3. d4 {[%clk 0:02:59.7]} 3... cxd4 {[%clk 0:02:59.9]} 4.
Nxd4 {[%clk 0:02:59.5]} 4... g6 {[%clk 0:03:00.2]} 5. c4 {[%clk 0:02:58.6]} 5...
Bg7 {[%clk 0:02:59.4]} 6. Be3 {[%clk 0:02:58.4]} 6... Nf6 {[%clk 0:02:58.5]} 7.
Nc3 {[%clk 0:02:58]} 7... O-O {[%clk 0:02:57.8]} 8. Be2 {[%clk 0:02:58]} 8... d6
{[%clk 0:02:56.9]} 9. O-O {[%clk 0:02:56.5]} 9... Bd7 {[%clk 0:02:56.7]} 10. Nc2
{[%clk 0:02:49.7]} 10... Rc8 {[%clk 0:02:51.9]} 11. Qd2 {[%clk 0:02:47.9]} 11...
Ne5 {[%clk 0:02:49.1]} 12. Na3 {[%clk 0:02:47.6]} 12... Neg4 {[%clk 0:02:32]}
13. Bf4 {[%clk 0:02:39.6]} 13... Bc6 {[%clk 0:02:13]} 14. f3 {[%clk 0:02:24.3]}
14... Ne5 {[%clk 0:02:11.5]} 15. Rac1 {[%clk 0:02:14.1]} 15... Nfd7 {[%clk
0:02:04.7]} 16. Rfd1 {[%clk 0:02:09.8]} 16... b6 {[%clk 0:01:58.7]} 17. Nab5
{[%clk 0:02:05.8]} 17... Bxb5 {[%clk 0:01:52.5]} 18. Nxb5 {[%clk 0:02:04.5]}
18... a6 {[%clk 0:01:49.1]} 19. Na3 {[%clk 0:01:56.9]} 19... Nc5 {[%clk
0:01:47.2]} 20. Be3 {[%clk 0:01:55.2]} 20... h5 {[%clk 0:01:37.9]} 21. b3 {[%clk
0:01:50.3]} 21... Qc7 {[%clk 0:01:33.5]} 22. Nc2 {[%clk 0:01:49.1]} 22... Kh7
{[%clk 0:01:24.9]} 23. Nb4 {[%clk 0:01:48.6]} 23... Qb7 {[%clk 0:01:20.3]} 24.
Nd5 {[%clk 0:01:46.9]} 24... a5 {[%clk 0:01:06.9]} 25. Kh1 {[%clk 0:01:41.4]}
25... Rfd8 {[%clk 0:01:02.7]} 26. h3 {[%clk 0:01:34.7]} 26... Rb8 {[%clk
0:00:54.5]} 27. Nc3 {[%clk 0:01:34.2]} 27... Qc8 {[%clk 0:00:46.6]} 28. Nb5
{[%clk 0:01:33.7]} 28... Rd7 {[%clk 0:00:37.1]} 29. Nd4 {[%clk 0:01:29.4]} 29...
Qf8 {[%clk 0:00:33.5]} 30. Rb1 {[%clk 0:01:26.1]} 30... Rc7 {[%clk 0:00:23.3]}
31. Nb5 {[%clk 0:01:25.2]} 31... Rcb7 {[%clk 0:00:21.4]} 32. Nc3 {[%clk
0:01:25.2]} 32... Bh6 {[%clk 0:00:19.7]} 33. f4 {[%clk 0:01:21.7]} 33... Nc6
{[%clk 0:00:18.6]} 34. Bf3 {[%clk 0:01:20]} 34... Rd8 {[%clk 0:00:12.3]} 35. a3
{[%clk 0:01:10.9]} 35... e5 {[%clk 0:00:11.5]} 36. b4 {[%clk 0:01:05.7]} 36...
axb4 {[%clk 0:00:10.6]} 37. axb4 {[%clk 0:01:03.2]} 37... Ne6 {[%clk 0:00:10.4]}
38. g3 {[%clk 0:00:52.5]} 38... exf4 {[%clk 0:00:06.7]} 39. gxf4 {[%clk
0:00:51.6]} 39... Qe7 {[%clk 0:00:06.3]} 40. Nd5 {[%clk 0:00:48.5]} 40... Qh4
{[%clk 0:00:05.6]} 41. Bg2 {[%clk 0:00:46.5]} 41... Ne7 {[%clk 0:00:03.9]} 42.
Nxe7 {[%clk 0:00:36.4]} 42... Qxe7 {[%clk 0:00:02.9]} 43. f5 {[%clk 0:00:31.9]}
43... Bxe3 {[%clk 0:00:01.7]} 44. Qxe3 {[%clk 0:00:31.1]} 44... Ng7 {[%clk
0:00:01.3]} 45. fxg6+ {[%clk 0:00:30.4]} 45... fxg6 {[%clk 0:00:01.9]} 46. e5
{[%clk 0:00:29.9]} 46... dxe5 {[%clk 0:00:01.3]} 47. Rxd8 {[%clk 0:00:26.3]}
47... Qxd8 {[%clk 0:00:02.2]} 48. Bxb7 {[%clk 0:00:25]} 1-0

[Event "Betsys MČR v online bleskovém šachu 2021"]
[Site "Chess.com"]
[Date "2021.04.17"]
[Round "3"]
[White "rakintsev"]
[Black "hever99"]
[Result "0-1"]
[WhiteElo "1772"]
[BlackElo "2149"]
[TimeControl "180+1"]
[EndTime "9:27:42 PDT"]
[Termination "Uživatel hever99 zvítězil po vzdání soupeře"]

1. e4 {[%clk 0:03:00.9]} 1... c5 {[%clk 0:02:59.7]} 2. Nf3 {[%clk 0:03:00.1]}
2... d6 {[%clk 0:02:59.8]} 3. Bc4 {[%clk 0:02:59.7]} 3... e6 {[%clk 0:02:58.6]}
4. Nc3 {[%clk 0:02:56.2]} 4... a6 {[%clk 0:02:54.7]} 5. a4 {[%clk 0:02:55]} 5...
Nc6 {[%clk 0:02:52.2]} 6. O-O {[%clk 0:02:53.3]} 6... Nf6 {[%clk 0:02:45.1]} 7.
d3 {[%clk 0:02:52.3]} 7... h6 {[%clk 0:02:43.5]} 8. Bd2 {[%clk 0:02:44.8]} 8...
d5 {[%clk 0:02:40.6]} 9. exd5 {[%clk 0:02:42.6]} 9... exd5 {[%clk 0:02:40.8]}
10. Bb3 {[%clk 0:02:38.6]} 10... Be7 {[%clk 0:02:37.4]} 11. Re1 {[%clk
0:02:30.8]} 11... O-O {[%clk 0:02:36.5]} 12. Ne2 {[%clk 0:02:12.7]} 12... Bg4
{[%clk 0:02:26.8]} 13. Ng3 {[%clk 0:02:11.7]} 13... Nd4 {[%clk 0:02:21.5]} 14.
Re3 {[%clk 0:01:53.9]} 14... Bd6 {[%clk 0:01:49.2]} 15. Qe1 {[%clk 0:01:50.6]}
15... Bf4 {[%clk 0:01:39.1]} 16. Nxd4 {[%clk 0:01:36.6]} 16... Bxe3 {[%clk
0:01:34.3]} 17. Bxe3 {[%clk 0:01:24.8]} 17... cxd4 {[%clk 0:01:34.2]} 18. Bxd4
{[%clk 0:01:24.1]} 18... Re8 {[%clk 0:01:30.8]} 19. Qd2 {[%clk 0:01:22.5]} 19...
Qd6 {[%clk 0:01:14.8]} 20. h3 {[%clk 0:01:17.5]} 20... Bd7 {[%clk 0:01:08.7]}
21. Rf1 {[%clk 0:01:07.9]} 21... a5 {[%clk 0:01:01.6]} 22. Qc3 {[%clk
0:00:45.5]} 22... Rec8 {[%clk 0:00:50.1]} 23. Qd2 {[%clk 0:00:41.9]} 23... b5
{[%clk 0:00:49]} 24. axb5 {[%clk 0:00:19.8]} 24... a4 {[%clk 0:00:43.5]} 25. Ba2
{[%clk 0:00:16]} 25... Bxb5 {[%clk 0:00:43.6]} 26. c3 {[%clk 0:00:14.8]} 26...
a3 {[%clk 0:00:35.3]} 27. b4 {[%clk 0:00:13.1]} 27... Qa6 {[%clk 0:00:31]} 28.
Nf5 {[%clk 0:00:12.4]} 28... Bxd3 {[%clk 0:00:28.5]} 29. Ne7+ {[%clk 0:00:11.5]}
29... Kh7 {[%clk 0:00:21.8]} 30. Nxc8 {[%clk 0:00:12.4]} 30... Bxf1 {[%clk
0:00:19.3]} 31. Ne7 {[%clk 0:00:10.9]} 31... Bc4 {[%clk 0:00:16.1]} 32. Bxf6
{[%clk 0:00:10.4]} 32... Qxf6 {[%clk 0:00:11.9]} 33. Nxd5 {[%clk 0:00:05.6]}
33... Bxd5 {[%clk 0:00:11.7]} 34. Qxd5 {[%clk 0:00:03.3]} 34... Rd8 {[%clk
0:00:11.5]} 35. Bb1+ {[%clk 0:00:02.4]} 35... Kg8 {[%clk 0:00:09.1]} 36. Qe4
{[%clk 0:00:02.4]} 36... Rd1+ {[%clk 0:00:07.8]} 37. Kh2 {[%clk 0:00:02.6]}
37... Qd6+ {[%clk 0:00:06.9]} 38. g3 {[%clk 0:00:03.5]} 38... Qd8 {[%clk
0:00:03.1]} 39. Qe8+ {[%clk 0:00:03.5]} 39... Qxe8 {[%clk 0:00:02.6]} 40. Bh7+
{[%clk 0:00:04.4]} 40... Kxh7 {[%clk 0:00:02]} 41. Kg2 {[%clk 0:00:05.3]} 41...
Qe7 {[%clk 0:00:02.5]} 42. h4 {[%clk 0:00:05.4]} 42... Qe6 {[%clk 0:00:03.4]}
0-1

[Event "Betsys MČR v online bleskovém šachu 2021"]
[Site "Chess.com"]
[Date "2021.04.17"]
[Round "3"]
[White "Bancroft"]
[Black "Adam20032007"]
[Result "1-0"]
[WhiteElo "1941"]
[BlackElo "1536"]
[TimeControl "180+1"]
[EndTime "9:27:42 PDT"]
[Termination "Uživatel Bancroft zvítězil matem"]

1. Nc3 {[%clk 0:03:00.9]} 1... d5 {[%clk 0:02:55.7]} 2. e4 {[%clk 0:02:59.2]}
2... dxe4 {[%clk 0:02:54.5]} 3. Nxe4 {[%clk 0:02:54.3]} 3... Nf6 {[%clk
0:02:52.5]} 4. Nxf6+ {[%clk 0:02:53.5]} 4... exf6 {[%clk 0:02:52.1]} 5. d4
{[%clk 0:02:53.2]} 5... Bd6 {[%clk 0:02:34.1]} 6. Bd3 {[%clk 0:02:50.4]} 6...
O-O {[%clk 0:02:33.7]} 7. Ne2 {[%clk 0:02:43.9]} 7... c5 {[%clk 0:02:28.5]} 8.
dxc5 {[%clk 0:02:41.6]} 8... Bxc5 {[%clk 0:02:28.5]} 9. O-O {[%clk 0:02:42.4]}
9... Nc6 {[%clk 0:02:27.1]} 10. Bf4 {[%clk 0:02:41.1]} 10... Bg4 {[%clk
0:02:19.2]} 11. c3 {[%clk 0:02:30]} 11... Re8 {[%clk 0:02:15.3]} 12. Qc2 {[%clk
0:02:25.9]} 12... Bxe2 {[%clk 0:01:59.4]} 13. Bxe2 {[%clk 0:02:23.5]} 13... Qb6
{[%clk 0:01:54.7]} 14. Bf3 {[%clk 0:02:10.9]} 14... Rad8 {[%clk 0:01:53.3]} 15.
Rad1 {[%clk 0:01:54.3]} 15... Ne5 {[%clk 0:01:51.2]} 16. Be4 {[%clk 0:01:42.8]}
16... Ng6 {[%clk 0:01:45.5]} 17. Bg3 {[%clk 0:01:42.5]} 17... Rxd1 {[%clk
0:01:41.6]} 18. Rxd1 {[%clk 0:01:41.8]} 18... Rd8 {[%clk 0:01:41.8]} 19. Rxd8+
{[%clk 0:01:40.9]} 19... Qxd8 {[%clk 0:01:42.5]} 20. Qd3 {[%clk 0:01:39.2]}
20... Qxd3 {[%clk 0:01:41.6]} 21. Bxd3 {[%clk 0:01:40.1]} 21... Ne5 {[%clk
0:01:41]} 22. Be4 {[%clk 0:01:37.4]} 22... b6 {[%clk 0:01:40.3]} 23. b3 {[%clk
0:01:29.8]} 23... a5 {[%clk 0:01:39.9]} 24. a4 {[%clk 0:01:26.9]} 24... h6
{[%clk 0:01:37.6]} 25. Kf1 {[%clk 0:01:26.2]} 25... Kf8 {[%clk 0:01:36.4]} 26.
Ke2 {[%clk 0:01:25.5]} 26... Ke7 {[%clk 0:01:36.5]} 27. h3 {[%clk 0:01:23.2]}
27... Ke6 {[%clk 0:01:34.8]} 28. f4 {[%clk 0:01:22.7]} 28... Nd7 {[%clk
0:01:31.6]} 29. Bd3 {[%clk 0:00:53.6]} 29... f5 {[%clk 0:01:29]} 30. Bc4+ {[%clk
0:00:51]} 30... Ke7 {[%clk 0:01:27]} 31. Bf2 {[%clk 0:00:50.5]} 31... Bxf2
{[%clk 0:01:23.8]} 32. Kxf2 {[%clk 0:00:51.4]} 32... f6 {[%clk 0:01:21.5]} 33.
b4 {[%clk 0:00:45.4]} 33... Kd6 {[%clk 0:01:18.7]} 34. Ke3 {[%clk 0:00:43.8]}
34... Nb8 {[%clk 0:01:15.1]} 35. Bb5 {[%clk 0:00:39.5]} 35... Nc6 {[%clk
0:01:06.3]} 36. Bxc6 {[%clk 0:00:39]} 36... Kxc6 {[%clk 0:01:07.1]} 37. Kd4
{[%clk 0:00:38.7]} 37... g5 {[%clk 0:00:59.7]} 38. g3 {[%clk 0:00:36.2]} 38...
Kd6 {[%clk 0:00:43.6]} 39. Kc4 {[%clk 0:00:28.3]} 39... h5 {[%clk 0:00:30]} 40.
Kb5 {[%clk 0:00:25.3]} 40... axb4 {[%clk 0:00:28.7]} 41. cxb4 {[%clk 0:00:24.6]}
41... Kc7 {[%clk 0:00:29]} 42. a5 {[%clk 0:00:23.1]} 42... bxa5 {[%clk
0:00:29.1]} 43. bxa5 {[%clk 0:00:24]} 43... h4 {[%clk 0:00:23.8]} 44. gxh4
{[%clk 0:00:17.2]} 44... gxf4 {[%clk 0:00:21.3]} 45. Kc4 {[%clk 0:00:17.1]}
45... f3 {[%clk 0:00:20.5]} 46. Kd3 {[%clk 0:00:16.5]} 46... f4 {[%clk
0:00:20.5]} 47. h5 {[%clk 0:00:15.5]} 47... Kc6 {[%clk 0:00:18.3]} 48. h6 {[%clk
0:00:15.6]} 48... Kb5 {[%clk 0:00:19.2]} 49. h7 {[%clk 0:00:15.9]} 49... Kc6
{[%clk 0:00:20.1]} 50. h8=Q {[%clk 0:00:16.3]} 50... Kb5 {[%clk 0:00:21]} 51.
Qxf6 {[%clk 0:00:16.5]} 51... Kxa5 {[%clk 0:00:21.9]} 52. Qxf4 {[%clk
0:00:16.9]} 52... f2 {[%clk 0:00:22.8]} 53. Qxf2 {[%clk 0:00:17.1]} 53... Kb5
{[%clk 0:00:22.7]} 54. Qd4 {[%clk 0:00:17.4]} 54... Kc6 {[%clk 0:00:23.6]} 55.
Kc4 {[%clk 0:00:17.5]} 55... Kc7 {[%clk 0:00:23.9]} 56. Qf6 {[%clk 0:00:17.4]}
56... Kb7 {[%clk 0:00:24]} 57. Kc5 {[%clk 0:00:17.4]} 57... Kc8 {[%clk
0:00:24.3]} 58. Qf7 {[%clk 0:00:17.1]} 58... Kd8 {[%clk 0:00:24.5]} 59. Kd6
{[%clk 0:00:16.4]} 59... Kc8 {[%clk 0:00:25]} 60. Qc7# {[%clk 0:00:16.8]} 1-0

[Event "Betsys MČR v online bleskovém šachu 2021"]
[Site "Chess.com"]
[Date "2021.04.17"]
[Round "3"]
[White "Dvacetsekund"]
[Black "HonzaRubes95"]
[Result "0-1"]
[WhiteElo "2194"]
[BlackElo "2516"]
[TimeControl "180+1"]
[EndTime "9:27:43 PDT"]
[Termination "Uživatel HonzaRubes95 zvítězil po vzdání soupeře"]

1. e4 {[%clk 0:03:00.9]} 1... c5 {[%clk 0:02:58.7]} 2. Nf3 {[%clk 0:03:00.9]}
2... Nc6 {[%clk 0:02:56.9]} 3. Nc3 {[%clk 0:03:00.2]} 3... e5 {[%clk 0:02:47.5]}
4. Bc4 {[%clk 0:02:59.3]} 4... Be7 {[%clk 0:02:46.3]} 5. d3 {[%clk 0:02:57.4]}
5... Nf6 {[%clk 0:02:40.3]} 6. Nd2 {[%clk 0:02:56.7]} 6... d6 {[%clk 0:02:38.9]}
7. Nf1 {[%clk 0:02:56.5]} 7... O-O {[%clk 0:02:37]} 8. Ne3 {[%clk 0:02:56.1]}
8... Nd7 {[%clk 0:02:37.6]} 9. O-O {[%clk 0:02:50.4]} 9... Nb6 {[%clk
0:02:37.8]} 10. a4 {[%clk 0:02:45.7]} 10... Nd4 {[%clk 0:02:34]} 11. Ncd5 {[%clk
0:02:37.5]} 11... Nxd5 {[%clk 0:02:23.4]} 12. Nxd5 {[%clk 0:02:34.2]} 12... Bg5
{[%clk 0:02:21.7]} 13. c3 {[%clk 0:02:29.1]} 13... Bxc1 {[%clk 0:02:19.6]} 14.
Rxc1 {[%clk 0:02:23.4]} 14... Nc6 {[%clk 0:02:12.3]} 15. f4 {[%clk 0:02:14.7]}
15... exf4 {[%clk 0:02:09.7]} 16. Nxf4 {[%clk 0:02:09.1]} 16... Ne5 {[%clk
0:02:01]} 17. Bd5 {[%clk 0:02:00.7]} 17... Rb8 {[%clk 0:02:01]} 18. h3 {[%clk
0:01:43.9]} 18... b5 {[%clk 0:01:37.8]} 19. d4 {[%clk 0:01:40.8]} 19... cxd4
{[%clk 0:01:25.4]} 20. cxd4 {[%clk 0:01:41.7]} 20... Ng6 {[%clk 0:01:20.5]} 21.
axb5 {[%clk 0:01:16.2]} 21... Rxb5 {[%clk 0:01:15.1]} 22. Nxg6 {[%clk
0:01:15.1]} 22... hxg6 {[%clk 0:01:14.5]} 23. b3 {[%clk 0:01:14.5]} 23... Be6
{[%clk 0:00:58.5]} 24. Bxe6 {[%clk 0:01:04.9]} 24... fxe6 {[%clk 0:00:58.8]} 25.
Qg4 {[%clk 0:01:01.7]} 25... Rxf1+ {[%clk 0:00:48.3]} 26. Rxf1 {[%clk
0:00:58.3]} 26... Qe8 {[%clk 0:00:49]} 27. Rf3 {[%clk 0:00:52.3]} 27... Rb4
{[%clk 0:00:43]} 28. Rd3 {[%clk 0:00:43.2]} 28... Rb8 {[%clk 0:00:37.7]} 29. Kh2
{[%clk 0:00:41.1]} 29... a5 {[%clk 0:00:34.6]} 30. d5 {[%clk 0:00:34.1]} 30...
e5 {[%clk 0:00:34.3]} 31. Rc3 {[%clk 0:00:27.5]} 31... Qf7 {[%clk 0:00:23.7]}
32. Rc6 {[%clk 0:00:24]} 32... Qf6 {[%clk 0:00:16.4]} 33. Rc8+ {[%clk
0:00:18.7]} 33... Rxc8 {[%clk 0:00:16.3]} 34. Qxc8+ {[%clk 0:00:19.6]} 34... Kh7
{[%clk 0:00:16.7]} 35. Qg4 {[%clk 0:00:16.4]} 35... g5 {[%clk 0:00:16.7]} 36.
Kg3 {[%clk 0:00:15.4]} 36... Qf4+ {[%clk 0:00:16.4]} 37. Qxf4 {[%clk 0:00:15]}
37... gxf4+ {[%clk 0:00:17.3]} 38. Kg4 {[%clk 0:00:11.6]} 38... Kg6 {[%clk
0:00:18.2]} 39. h4 {[%clk 0:00:11]} 39... Kh6 {[%clk 0:00:17.5]} 40. Kh3 {[%clk
0:00:06.8]} 40... Kh5 {[%clk 0:00:17.7]} 41. g3 {[%clk 0:00:04.6]} 41... fxg3
{[%clk 0:00:18.2]} 42. Kxg3 {[%clk 0:00:04.3]} 42... g5 {[%clk 0:00:19.1]} 43.
hxg5 {[%clk 0:00:03.4]} 43... Kxg5 {[%clk 0:00:20]} 44. Kf3 {[%clk 0:00:03.3]}
44... Kh4 {[%clk 0:00:20.2]} 45. Kf2 {[%clk 0:00:02.6]} 45... Kg4 {[%clk
0:00:20.2]} 46. Ke3 {[%clk 0:00:02.9]} 46... Kg3 {[%clk 0:00:20.6]} 47. Ke2
{[%clk 0:00:02.6]} 47... Kf4 {[%clk 0:00:20.7]} 48. Kd3 {[%clk 0:00:02.1]} 48...
Kf3 {[%clk 0:00:21.1]} 49. Kc4 {[%clk 0:00:01.7]} 49... Kxe4 {[%clk 0:00:21.4]}
50. Kb5 {[%clk 0:00:02.1]} 50... Kd4 {[%clk 0:00:20.4]} 51. Kxa5 {[%clk
0:00:03]} 51... e4 {[%clk 0:00:21]} 0-1

[Event "Betsys MČR v online bleskovém šachu 2021"]
[Site "Chess.com"]
[Date "2021.04.17"]
[Round "3"]
[White "sachistamartin"]
[Black "ikovacs"]
[Result "1-0"]
[WhiteElo "1450"]
[BlackElo "1047"]
[TimeControl "180+1"]
[EndTime "9:27:45 PDT"]
[Termination "Uživatel sachistamartin zvítězil na čas"]

1. c4 {[%clk 0:03:00.9]} 1... c5 {[%clk 0:02:54.6]} 2. Nc3 {[%clk 0:02:59.8]}
2... e5 {[%clk 0:02:52.5]} 3. Nf3 {[%clk 0:02:58.8]} 3... Nf6 {[%clk 0:02:50.1]}
4. d3 {[%clk 0:02:58.2]} 4... Nc6 {[%clk 0:02:45.2]} 5. b3 {[%clk 0:02:55.6]}
5... g6 {[%clk 0:02:42.4]} 6. Bb2 {[%clk 0:02:54.9]} 6... Bg7 {[%clk 0:02:41.7]}
7. g3 {[%clk 0:02:54]} 7... O-O {[%clk 0:02:40.4]} 8. Bg2 {[%clk 0:02:53.4]}
8... d5 {[%clk 0:02:33.4]} 9. e3 {[%clk 0:02:42.6]} 9... d4 {[%clk 0:02:30.2]}
10. Ne2 {[%clk 0:02:28.9]} 10... Bg4 {[%clk 0:02:18.1]} 11. O-O {[%clk
0:02:24.5]} 11... Rb8 {[%clk 0:02:05.8]} 12. e4 {[%clk 0:02:20.2]} 12... Qd7
{[%clk 0:01:52.1]} 13. Qd2 {[%clk 0:02:13.4]} 13... Bh3 {[%clk 0:01:46.2]} 14.
a3 {[%clk 0:02:01.9]} 14... Bxg2 {[%clk 0:01:44.6]} 15. Kxg2 {[%clk 0:02:01.2]}
15... a5 {[%clk 0:01:40.6]} 16. b4 {[%clk 0:01:54.7]} 16... axb4 {[%clk
0:01:39]} 17. axb4 {[%clk 0:01:54.3]} 17... b6 {[%clk 0:01:39.1]} 18. bxc5
{[%clk 0:01:51]} 18... bxc5 {[%clk 0:01:37.6]} 19. Ba3 {[%clk 0:01:50.5]} 19...
Nb4 {[%clk 0:01:26.1]} 20. Nxe5 {[%clk 0:01:45]} 20... Qa4 {[%clk 0:01:12]} 21.
Bxb4 {[%clk 0:01:37.9]} 21... Qxb4 {[%clk 0:01:09.8]} 22. Qxb4 {[%clk
0:01:31.8]} 22... Rxb4 {[%clk 0:01:08.1]} 23. f4 {[%clk 0:01:27.3]} 23... Rfb8
{[%clk 0:01:02.4]} 24. Nc6 {[%clk 0:01:25.6]} 24... Rb2 {[%clk 0:00:57.9]} 25.
Nxb8 {[%clk 0:01:22.2]} 25... Rxe2+ {[%clk 0:00:50.1]} 26. Rf2 {[%clk
0:01:20.6]} 26... Re3 {[%clk 0:00:45.8]} 27. Ra8 {[%clk 0:01:13.3]} 27... Ng4
{[%clk 0:00:41.8]} 28. Nd7+ {[%clk 0:01:10.7]} 28... Bf8 {[%clk 0:00:37.9]} 29.
Rxf8+ {[%clk 0:00:59.2]} 29... Kg7 {[%clk 0:00:36.6]} 30. Rb2 {[%clk 0:00:55.7]}
30... Rxd3 {[%clk 0:00:30.9]} 31. Rbb8 {[%clk 0:00:47.5]} 31... Rd2+ {[%clk
0:00:23.3]} 32. Kh3 {[%clk 0:00:44.3]} 32... Nf6 {[%clk 0:00:19.1]} 33. Nxf6
{[%clk 0:00:41.5]} 33... Kxf6 {[%clk 0:00:18.9]} 34. Rb7 {[%clk 0:00:39.4]}
34... d3 {[%clk 0:00:14.6]} 35. Rbxf7+ {[%clk 0:00:37.9]} 35... Ke6 {[%clk
0:00:13.1]} 36. f5+ {[%clk 0:00:35.6]} 36... Ke5 {[%clk 0:00:12.2]} 37. Re8+
{[%clk 0:00:32.8]} 37... Kd4 {[%clk 0:00:11.6]} 38. Rd7+ {[%clk 0:00:31.6]}
38... Kc3 {[%clk 0:00:11.2]} 39. Red8 {[%clk 0:00:27.7]} 39... Rd1 {[%clk
0:00:07.9]} 40. Rxd3+ {[%clk 0:00:26.2]} 40... Rxd3 {[%clk 0:00:06.5]} 41. Rxd3+
{[%clk 0:00:25.2]} 41... Kxd3 {[%clk 0:00:04.7]} 42. e5 {[%clk 0:00:24.9]} 42...
gxf5 {[%clk 0:00:02.8]} 43. e6 {[%clk 0:00:24.5]} 43... Kxc4 {[%clk 0:00:02.6]}
44. e7 {[%clk 0:00:24.1]} 44... Kb4 {[%clk 0:00:02.4]} 45. e8=Q {[%clk 0:00:23]}
45... c4 {[%clk 0:00:01.9]} 46. Qe1+ {[%clk 0:00:20.1]} 46... c3 {[%clk
0:00:01.6]} 47. Kh4 {[%clk 0:00:19]} 1-0

[Event "Betsys MČR v online bleskovém šachu 2021"]
[Site "Chess.com"]
[Date "2021.04.17"]
[Round "3"]
[White "JakubPulpan"]
[Black "fera_v"]
[Result "1-0"]
[WhiteElo "2717"]
[BlackElo "2246"]
[TimeControl "180+1"]
[EndTime "9:27:46 PDT"]
[Termination "Uživatel JakubPulpan zvítězil po vzdání soupeře"]

1. Nf3 {[%clk 0:02:55.6]} 1... Nf6 {[%clk 0:02:59.2]} 2. b3 {[%clk 0:02:54.1]}
2... g6 {[%clk 0:02:59.4]} 3. Bb2 {[%clk 0:02:54.4]} 3... Bg7 {[%clk 0:02:59.9]}
4. g3 {[%clk 0:02:55.2]} 4... d6 {[%clk 0:03:00.1]} 5. d4 {[%clk 0:02:55.3]}
5... O-O {[%clk 0:03:00.3]} 6. Bg2 {[%clk 0:02:55.9]} 6... c6 {[%clk 0:02:53.2]}
7. Nbd2 {[%clk 0:02:55]} 7... Nbd7 {[%clk 0:02:53.2]} 8. O-O {[%clk 0:02:53.5]}
8... a5 {[%clk 0:02:53]} 9. a4 {[%clk 0:02:52.5]} 9... Qc7 {[%clk 0:02:50.9]}
10. e4 {[%clk 0:02:52.4]} 10... e5 {[%clk 0:02:50.1]} 11. dxe5 {[%clk
0:02:53.3]} 11... dxe5 {[%clk 0:02:49.8]} 12. Re1 {[%clk 0:02:52.9]} 12... Re8
{[%clk 0:02:48.3]} 13. Nc4 {[%clk 0:02:52.9]} 13... Bf8 {[%clk 0:02:47.1]} 14.
Qd2 {[%clk 0:02:42.9]} 14... Bb4 {[%clk 0:02:44]} 15. Bc3 {[%clk 0:02:38.4]}
15... Bxc3 {[%clk 0:02:37.6]} 16. Qxc3 {[%clk 0:02:39.3]} 16... b6 {[%clk
0:01:55.3]} 17. Rad1 {[%clk 0:02:38.2]} 17... Ba6 {[%clk 0:01:55.1]} 18. Nd6
{[%clk 0:02:27.8]} 18... Re7 {[%clk 0:01:52.6]} 19. Bh3 {[%clk 0:02:10.7]} 19...
Rd8 {[%clk 0:01:49]} 20. Ng5 {[%clk 0:01:59.8]} 20... Nc5 {[%clk 0:01:42.3]} 21.
Ndxf7 {[%clk 0:01:26.2]} 21... Rxf7 {[%clk 0:01:36.8]} 22. Rxd8+ {[%clk
0:01:24.7]} 22... Qxd8 {[%clk 0:01:36.4]} 23. Nxf7 {[%clk 0:01:25.6]} 23... Kxf7
{[%clk 0:01:35.7]} 24. Qxe5 {[%clk 0:01:25.4]} 24... Qe7 {[%clk 0:01:32.3]} 25.
Qd4 {[%clk 0:01:05.1]} 25... Ncxe4 {[%clk 0:01:23.4]} 26. Bg2 {[%clk 0:00:47.2]}
26... Qc5 {[%clk 0:01:16.9]} 27. Rxe4 {[%clk 0:00:43.6]} 27... Nxe4 {[%clk
0:01:12.7]} 28. Qxe4 {[%clk 0:00:44.5]} 28... Bb7 {[%clk 0:01:06.5]} 29. h4
{[%clk 0:00:39.8]} 29... Qd6 {[%clk 0:01:04.9]} 30. Bf3 {[%clk 0:00:34.8]} 30...
h6 {[%clk 0:01:02.6]} 31. h5 {[%clk 0:00:33.5]} 31... Kg7 {[%clk 0:00:47.6]} 32.
hxg6 {[%clk 0:00:33.2]} 32... Qxg6 {[%clk 0:00:47.4]} 33. Qd4+ {[%clk
0:00:33.1]} 33... Qf6 {[%clk 0:00:45.1]} 34. Qxb6 {[%clk 0:00:18.8]} 34... Qxf3
{[%clk 0:00:44.1]} 35. Qxb7+ {[%clk 0:00:19.2]} 35... Kg6 {[%clk 0:00:40.8]} 36.
c4 {[%clk 0:00:12.8]} 36... Qd1+ {[%clk 0:00:37.9]} 37. Kg2 {[%clk 0:00:12.9]}
37... Qd6 {[%clk 0:00:36.6]} 38. Qb6 {[%clk 0:00:11.2]} 38... Qe6 {[%clk
0:00:33.3]} 39. Qe3 {[%clk 0:00:10.5]} 39... Qd6 {[%clk 0:00:31.8]} 40. Qe4+
{[%clk 0:00:10.4]} 40... Kg7 {[%clk 0:00:31]} 41. Qf3 {[%clk 0:00:09.8]} 41...
Kg6 {[%clk 0:00:30.6]} 42. g4 {[%clk 0:00:09.4]} 42... Kg7 {[%clk 0:00:29.5]}
43. Qc3+ {[%clk 0:00:09.6]} 43... Kg6 {[%clk 0:00:29.3]} 44. Qxa5 {[%clk
0:00:09.9]} 44... Qd4 {[%clk 0:00:26]} 45. Qf5+ {[%clk 0:00:09.8]} 45... Kg7
{[%clk 0:00:26.3]} 46. a5 {[%clk 0:00:09.4]} 46... Qc3 {[%clk 0:00:22.3]} 47. a6
{[%clk 0:00:08.9]} 47... Qxb3 {[%clk 0:00:20.2]} 48. a7 {[%clk 0:00:07.8]} 48...
Qa4 {[%clk 0:00:20.8]} 49. Qd7+ {[%clk 0:00:07.3]} 49... Kf6 {[%clk 0:00:20.2]}
50. Qd8+ {[%clk 0:00:07.3]} 50... Kg6 {[%clk 0:00:19]} 51. a8=Q {[%clk
0:00:08.2]} 51... Qxc4 {[%clk 0:00:18.6]} 52. Qg8+ {[%clk 0:00:08.2]} 1-0